fUSD/lending_fUSD_20241030
["ID","MTS","AMOUNT","RATE_DAILY","PERIOD"]
[341049742,1730302277728,-638.8,0.00038082,5]
[341049743,1730302277737,-536.5,0.00038082,5]
[341049744,1730302277747,-948.73,0.00038082,5]
[341049745,1730302277756,-1435.74,0.00038082,5]
[341049746,1730302277766,-596.98,0.00038082,5]
[341049747,1730302277776,-500.0,0.00038082,5]
[341049748,1730302277786,-1131.97,0.00038082,5]
[341049749,1730302277795,-2913.63,0.00038082,5]
[341049750,1730302277804,-330.910403,0.00038082,5]
[341049751,1730302277813,-1246.85,0.00038082,5]
[341049752,1730302277823,-909.5,0.00038082,5]
[341049753,1730302277832,-682.68,0.00038082,5]
[341049754,1730302277842,-512.41,0.00038082,5]
[341049755,1730302277852,-1653.57,0.00038082,5]
[341049756,1730302277862,-568.82,0.00038082,5]
[341049757,1730302277871,-607.5,0.00038082,5]
[341049758,1730302277881,-500.0,0.00038082,5]
[341049759,1730302277890,-685.64,0.00038082,5]
[341049760,1730302277900,-500.0,0.00038082,5]
[341049761,1730302277910,-529.75,0.00038082,5]
[341049762,1730302277919,-548.22,0.00038082,5]
[341049763,1730302277929,-728.2,0.00038082,5]
[341049764,1730302277938,-1132.3,0.00038082,5]
[341049765,1730302277949,-597.03,0.00038082,5]
[341049766,1730302277959,-1047.4,0.00038082,5]
[341049767,1730302277969,-770.64,0.00038082,5]
[341049768,1730302277978,-535.78,0.00038082,5]
[341049769,1730302277987,-507.29,0.00038082,5]
[341049770,1730302277997,-536.48,0.00038082,5]
[341049771,1730302278006,-879.42,0.00038082,5]
[341049772,1730302278015,-1152.94,0.00038082,5]
[341049773,1730302278024,-500.0,0.00038082,5]
[341049774,1730302278033,-538.17,0.00038082,5]
[341049775,1730302278043,-1061.7,0.00038082,5]
[341049776,1730302278052,-745.29,0.00038082,5]
[341049777,1730302278062,-1669.21,0.00038082,5]
[341049778,1730302278071,-3103.25,0.00038082,5]
[341049779,1730302278080,-964.84,0.0003811,2]
[341049780,1730302278090,-175.26,0.00038131,2]
[341049781,1730302278099,-153.0,0.00038151,2]
[341049782,1730302278108,-153.0,0.00038151,2]
[341049783,1730302278117,-153.0,0.00038151,2]
[341049784,1730302278126,-153.0,0.00038151,2]
[341049785,1730302278135,-153.0,0.00038151,2]
[341049786,1730302278145,-153.0,0.00038151,2]
[341049787,1730302278155,-153.0,0.00038151,2]
[341049788,1730302278164,-153.0,0.00038151,2]
[341049789,1730302278174,-153.0,0.00038151,2]
[341049790,1730302278184,-153.0,0.00038151,2]
[341049791,1730302278193,-153.0,0.00038151,2]
[341049792,1730302278202,-153.0,0.00038151,2]
[341049793,1730302278213,-153.0,0.0003829,2]
[341049794,1730302278222,-153.0,0.0003829,2]
[341049795,1730302278231,-153.0,0.0003829,2]
[341049796,1730302278241,-153.0,0.0003829,2]
[341049797,1730302278250,-153.0,0.0003829,2]
[341049798,1730302278260,-1000.0,0.00038352,5]
[341049799,1730302278269,-500.0,0.00038356,5]
[341049800,1730302278279,-175.89807662,0.00038356,5]
[341049801,1730302278290,-500.0,0.00038356,5]
[341049802,1730302278299,-650.94,0.00038356,5]
[341049803,1730302278308,-645.8,0.00038356,5]
[341049804,1730302278318,-820.11,0.00038356,5]
[341049805,1730302278327,-1894.55,0.00038356,5]
[341049806,1730302278338,-2596.24,0.00038356,5]
[341049807,1730302278348,-1296.63,0.00038356,5]
[341049808,1730302278358,-198.31604377,0.00038356,5]
[341049809,1730302278368,-500.0,0.00038356,5]
[341049810,1730302278378,-522.83,0.00038356,5]
[341049811,1730302278388,-858.81,0.00038356,5]
[341049812,1730302278397,-644.61,0.00038356,5]
[341049813,1730302278407,-500.0,0.00038356,5]
[341049814,1730302278416,-1013.76,0.00038356,5]
[341049815,1730302278426,-1525.36,0.00038356,5]
[341049816,1730302278435,-994.82,0.00038356,5]
[341049817,1730302278445,-1722.33,0.00038356,5]
[341049818,1730302278456,-500.0,0.00038356,5]
[341049819,1730302278466,-765.48,0.00038356,5]
[341049820,1730302278476,-520.05,0.00038356,5]
[341049821,1730302278486,-675.19,0.00038356,5]
[341049822,1730302278496,-746.68,0.00038356,5]
[341049823,1730302278506,-784.67,0.00038356,5]
[341049824,1730302278515,-1069.78,0.00038356,5]
[341049825,1730302278524,-736.62,0.00038356,5]
[341049826,1730302278534,-854.42,0.00038356,5]
[341049827,1730302278544,-606.31,0.00038356,5]
[341049828,1730302278554,-500.0,0.00038356,5]
[341049829,1730302278568,-500.0,0.00038356,5]
[341049830,1730302278578,-674.49,0.00038356,5]
[341049831,1730302278588,-982.93,0.00038356,5]
[341049832,1730302278599,-778.7,0.00038356,5]
[341049833,1730302278609,-728.13,0.00038356,5]
[341049834,1730302278619,-1522.75,0.00038356,5]
[341049835,1730302278629,-552.1,0.00038356,5]
[341049836,1730302278639,-662.62,0.00038356,5]
[341049837,1730302278649,-1018.42,0.00038356,5]
[341049838,1730302278659,-1327.53,0.00038356,5]
[341049839,1730302278668,-607.17,0.00038356,5]
[341049840,1730302278678,-560.36,0.00038356,5]
[341049841,1730302278687,-500.0,0.00038356,5]
[341049842,1730302278697,-508.13,0.00038356,5]
[341049843,1730302278707,-1605.64,0.00038356,2]
[341049844,1730302278717,-500.0,0.00038356,5]
[341049845,1730302278727,-500.0,0.00038356,5]
[341049846,1730302278737,-500.0,0.00038356,5]
[341049847,1730302278746,-500.0,0.00038356,5]
[341049848,1730302278755,-500.0,0.00038356,5]
[341049849,1730302278765,-500.0,0.00038356,5]
[341049850,1730302278774,-500.0,0.00038356,5]
[341049851,1730302278784,-500.0,0.00038356,5]
[341049852,1730302278793,-500.0,0.00038356,5]
[341049853,1730302278803,-500.0,0.00038356,5]
[341049854,1730302278812,-500.0,0.00038356,5]
[341049855,1730302278822,-500.0,0.00038356,5]
[341049856,1730302278832,-485.33061742,0.00038356,5]
[341049857,1730302278842,-500.0,0.00038356,5]
[341049858,1730302278851,-863.12,0.00038356,5]
[341049859,1730302278861,-1678.61,0.00038356,5]
[341049860,1730302278870,-656.55,0.00038356,5]
[341049861,1730302278880,-1610.11,0.00038356,5]
[341049862,1730302278890,-893.64,0.00038356,5]
[341049863,1730302278900,-742.19,0.00038356,5]
[341049864,1730302278911,-785.2,0.00038356,5]
[341049865,1730302278921,-638.8,0.00038356,5]
[341049866,1730302278931,-536.5,0.00038356,5]
[341049867,1730302278940,-948.73,0.00038356,5]
[341049868,1730302278951,-596.98,0.00038356,5]
[341049869,1730302278964,-1435.74,0.00038356,5]
[341049870,1730302278975,-500.0,0.00038356,5]
[341049871,1730302278986,-1131.97,0.00038356,5]
[341049872,1730302278996,-2913.63,0.00038356,5]
[341049873,1730302279006,-1246.85,0.00038356,5]
[341049874,1730302279017,-909.5,0.00038356,5]
[341049875,1730302279027,-682.68,0.00038356,5]
[341049876,1730302279037,-512.41,0.00038356,5]
[341049877,1730302279047,-1653.57,0.00038356,5]
[341049878,1730302279056,-568.82,0.00038356,5]
[341049879,1730302279066,-607.5,0.00038356,5]
[341049880,1730302279076,-500.0,0.00038356,5]
[341049881,1730302279087,-685.64,0.00038356,5]
[341049882,1730302279097,-500.0,0.00038356,5]
[341049883,1730302279107,-529.75,0.00038356,5]
[341049884,1730302279116,-548.22,0.00038356,5]
[341049885,1730302279126,-728.2,0.00038356,5]
[341049886,1730302279136,-1132.3,0.00038356,5]
[341049887,1730302279145,-597.03,0.00038356,5]
[341049888,1730302279154,-1047.4,0.00038356,5]
[341049889,1730302279164,-770.64,0.00038356,5]
[341049890,1730302279173,-535.78,0.00038356,5]
[341049891,1730302279183,-507.29,0.00038356,5]
[341049892,1730302279193,-536.48,0.00038356,5]
[341049893,1730302279206,-879.42,0.00038356,5]
[341049894,1730302279215,-1152.94,0.00038356,5]
[341049895,1730302279224,-500.0,0.00038356,5]
[341049896,1730302279233,-538.17,0.00038356,5]
[341049897,1730302279243,-1061.7,0.00038356,5]
[341049898,1730302279252,-745.29,0.00038356,5]
[341049899,1730302279261,-3103.25,0.00038356,5]
[341049900,1730302279270,-1669.21,0.00038356,5]
[341049901,1730302279280,-2138.09,0.00038356,2]
[341049902,1730302279289,-18191.98,0.00038356,2]
[341049903,1730302279299,-1145.01327034,0.00038394,5]
[341049904,1730302279308,-2975.73,0.00038629,120]
[341049905,1730302279318,-500.0,0.0003863,5]
[341049906,1730302279327,-500.0,0.0003863,5]
[341049907,1730302279337,-650.94,0.0003863,5]
[341049908,1730302279346,-645.8,0.0003863,5]
[341049909,1730302279355,-820.11,0.0003863,5]
[341049910,1730302279365,-1894.55,0.0003863,5]
[341049911,1730302279375,-2596.24,0.0003863,5]
[341049912,1730302279385,-1296.63,0.0003863,5]
[341049913,1730302279395,-500.0,0.0003863,5]
[341049914,1730302279405,-522.83,0.0003863,5]
[341049915,1730302279415,-858.81,0.0003863,5]
[341049916,1730302279425,-644.61,0.0003863,5]
[341049917,1730302279434,-279.98955806,0.0003863,5]
[341049918,1730302279444,-1013.76,0.0003863,5]
[341049919,1730302279455,-1525.36,0.0003863,5]
[341049920,1730302279465,-994.82,0.0003863,5]
[341049921,1730302279476,-1722.33,0.0003863,5]
[341049922,1730302279486,-500.0,0.0003863,5]
[341049923,1730302279496,-765.48,0.0003863,5]
[341049924,1730302279506,-520.05,0.0003863,5]
[341049925,1730302279516,-675.19,0.0003863,5]
[341049926,1730302279527,-746.68,0.0003863,5]
[341049927,1730302279537,-784.67,0.0003863,5]
[341049928,1730302279547,-1069.78,0.0003863,5]
[341049929,1730302279563,-736.62,0.0003863,5]
[341049930,1730302279572,-854.42,0.0003863,5]
[341049931,1730302279582,-606.31,0.0003863,5]
[341049932,1730302279591,-500.0,0.0003863,5]
[341049933,1730302279603,-208.5150392,0.0003863,5]
[341049934,1730302279613,-674.49,0.0003863,5]
[341049935,1730302279623,-982.93,0.0003863,5]
[341049936,1730302279633,-778.7,0.0003863,5]
[341049937,1730302279643,-728.13,0.0003863,5]
[341049938,1730302279653,-1522.75,0.0003863,5]
[341049939,1730302279663,-552.1,0.0003863,5]
[341049940,1730302279673,-662.62,0.0003863,5]
[341049941,1730302279683,-1018.42,0.0003863,5]
[341049942,1730302279695,-1327.53,0.0003863,5]
[341049943,1730302279706,-607.17,0.0003863,5]
[341049944,1730302279715,-560.36,0.0003863,5]
[341049945,1730302279725,-500.0,0.0003863,5]
[341049946,1730302279734,-508.13,0.0003863,5]
[341049947,1730302279744,-1605.64,0.0003863,2]
[341049948,1730302279756,-500.0,0.0003863,5]
[341049949,1730302279766,-863.12,0.0003863,5]
[341049950,1730302279776,-1678.61,0.0003863,5]
[341049951,1730302279786,-656.55,0.0003863,5]
[341049952,1730302279795,-1610.11,0.0003863,5]
[341049953,1730302279805,-893.64,0.0003863,5]
[341049954,1730302279815,-742.19,0.0003863,5]
[341049955,1730302279825,-785.2,0.0003863,5]
[341049956,1730302279835,-638.8,0.0003863,5]
[341049957,1730302279845,-536.5,0.0003863,5]
[341049958,1730302279854,-948.73,0.0003863,5]
[341049959,1730302279864,-596.98,0.0003863,5]
[341049960,1730302279873,-1435.74,0.0003863,5]
[341049961,1730302279883,-347.8001284,0.0003863,5]
[341049962,1730302279892,-1131.97,0.0003863,5]
[341049963,1730302279902,-2913.63,0.0003863,5]
[341049964,1730302279912,-1246.85,0.0003863,5]
[341049965,1730302279921,-909.5,0.0003863,5]
[341049966,1730302279932,-682.68,0.0003863,5]
[341049967,1730302279943,-512.41,0.0003863,5]
[341049968,1730302279954,-1653.57,0.0003863,5]
[341049969,1730302279964,-568.82,0.0003863,5]
[341049970,1730302279973,-607.5,0.0003863,5]
[341049971,1730302279983,-269.14664067,0.0003863,5]
[341049972,1730302279993,-685.64,0.0003863,5]
[341049973,1730302280003,-500.0,0.0003863,5]
[341049974,1730302280014,-529.75,0.0003863,5]
[341049975,1730302280024,-548.22,0.0003863,5]
[341049976,1730302280035,-728.2,0.0003863,5]
[341049977,1730302280045,-1132.3,0.0003863,5]
[341049978,1730302280056,-597.03,0.0003863,5]
[341049979,1730302280066,-1047.4,0.0003863,5]
[341049980,1730302280076,-770.64,0.0003863,5]
[341049981,1730302280085,-535.78,0.0003863,5]
[341049982,1730302280095,-507.29,0.0003863,5]
[341049983,1730302280104,-536.48,0.0003863,5]
[341049984,1730302280113,-879.42,0.0003863,5]
[341049985,1730302280123,-1152.94,0.0003863,5]
[341049986,1730302280134,-500.0,0.0003863,5]
[341049987,1730302280144,-538.17,0.0003863,5]
[341049988,1730302280156,-1061.7,0.0003863,5]
[341049989,1730302280166,-745.29,0.0003863,5]
[341049990,1730302280176,-3103.25,0.0003863,5]
[341049991,1730302280185,-1669.21,0.0003863,5]
[341049992,1730302280195,-167.26,0.00038825,2]
[341049993,1730302280205,-838.83,0.00038903,5]
[341049994,1730302280214,-500.0,0.00038904,5]
[341049995,1730302280224,-328.47639293,0.00038904,5]
[341049996,1730302280233,-650.94,0.00038904,5]
[341049997,1730302280244,-645.8,0.00038904,5]
[341049998,1730302280255,-820.11,0.00038904,5]
[341049999,1730302280265,-1894.55,0.00038904,5]
[341050000,1730302280276,-2596.24,0.00038904,5]
[341050001,1730302280286,-1296.63,0.00038904,5]
[341050002,1730302280296,-632.73809639,0.00038904,5]
[341050003,1730302280307,-522.83,0.00038904,5]
[341050004,1730302280316,-858.81,0.00038904,5]
[341050005,1730302280326,-644.61,0.00038904,5]
[341050006,1730302280335,-1013.76,0.00038904,5]
[341050007,1730302280345,-1525.36,0.00038904,5]
[341050008,1730302280355,-994.82,0.00038904,5]
[341050009,1730302280364,-1722.33,0.00038904,5]
[341050010,1730302280374,-152.55669392,0.00038904,5]
[341050011,1730302280383,-765.48,0.00038904,5]
[341050012,1730302280392,-520.05,0.00038904,5]
[341050013,1730302280402,-675.19,0.00038904,5]
[341050014,1730302280412,-746.68,0.00038904,5]
[341050015,1730302280421,-784.67,0.00038904,5]
[341050016,1730302280431,-1069.78,0.00038904,5]
[341050017,1730302280440,-736.62,0.00038904,5]
[341050018,1730302280450,-854.42,0.00038904,5]
[341050019,1730302280461,-606.31,0.00038904,5]
[341050020,1730302280470,-303.9088029,0.00038904,5]
[341050021,1730302280480,-674.49,0.00038904,5]
[341050022,1730302280489,-982.93,0.00038904,5]
[341050023,1730302280499,-778.7,0.00038904,5]
[341050024,1730302280509,-728.13,0.00038904,5]
[341050025,1730302280520,-1522.75,0.00038904,5]
[341050026,1730302280530,-552.1,0.00038904,5]
[341050027,1730302280541,-662.62,0.00038904,5]
[341050028,1730302280552,-1018.42,0.00038904,5]
[341050029,1730302280564,-1327.53,0.00038904,5]
[341050030,1730302280575,-607.17,0.00038904,5]
[341050031,1730302280585,-560.36,0.00038904,5]
[341050032,1730302280594,-500.0,0.00038904,5]
[341050033,1730302280606,-508.13,0.00038904,5]
[341050034,1730302280615,-1605.64,0.00038904,2]
[341050035,1730302280625,-486.33418535,0.00038904,5]
[341050036,1730302280636,-863.12,0.00038904,5]
[341050037,1730302280647,-1678.61,0.00038904,5]
[341050038,1730302280658,-656.55,0.00038904,5]
[341050039,1730302280809,-1610.11,0.00038904,5]
[341050040,1730302280819,-893.64,0.00038904,5]
[341050041,1730302280829,-742.19,0.00038904,5]
[341050042,1730302280839,-785.2,0.00038904,5]
[341050043,1730302280850,-638.8,0.00038904,5]
[341050044,1730302280859,-536.5,0.00038904,5]
[341050045,1730302280869,-948.73,0.00038904,5]
[341050046,1730302280879,-596.98,0.00038904,5]
[341050047,1730302280888,-1435.74,0.00038904,5]
[341050048,1730302280898,-1131.97,0.00038904,5]
[341050049,1730302280907,-2913.63,0.00038904,5]
[341050050,1730302280917,-1246.85,0.00038904,5]
[341050051,1730302280929,-909.5,0.00038904,5]
[341050052,1730302280939,-682.68,0.00038904,5]
[341050053,1730302280950,-512.41,0.00038904,5]
[341050054,1730302280961,-1653.57,0.00038904,5]
[341050055,1730302280970,-568.82,0.00038904,5]
[341050056,1730302280979,-607.5,0.00038904,5]
[341050057,1730302280989,-685.64,0.00038904,5]
[341050058,1730302280999,-500.0,0.00038904,5]
[341050059,1730302281009,-529.75,0.00038904,5]
[341050060,1730302281019,-548.22,0.00038904,5]
[341050061,1730302281029,-728.2,0.00038904,5]
[341050062,1730302281040,-1132.3,0.00038904,5]
[341050063,1730302281049,-597.03,0.00038904,5]
[341050064,1730302281058,-1047.4,0.00038904,5]
[341050065,1730302281068,-770.64,0.00038904,5]
[341050066,1730302281077,-535.78,0.00038904,5]
[341050067,1730302281086,-507.29,0.00038904,5]
[341050068,1730302281095,-536.48,0.00038904,5]
[341050069,1730302281105,-879.42,0.00038904,5]
[341050070,1730302281115,-1152.94,0.00038904,5]
[341050071,1730302281125,-464.71085179,0.00038904,5]
[341050072,1730302281136,-538.17,0.00038904,5]
[341050073,1730302281147,-1061.7,0.00038904,5]
[341050074,1730302281157,-745.29,0.00038904,5]
[341050075,1730302281166,-3103.25,0.00038904,5]
[341050076,1730302281176,-1669.21,0.00038904,5]
[341050077,1730302281186,-228.48,0.00038917,2]
[341050078,1730302281196,-439.78996452,0.00039178,5]
[341050079,1730302281207,-651.09626233,0.00039178,5]
[341050080,1730302281216,-645.9062793,0.00039178,5]
[341050081,1730302281226,-820.1636919,0.00039178,5]
[341050082,1730302281235,-1894.56342928,0.00039178,5]
[341050083,1730302281245,-2596.42870982,0.00039178,5]
[341050084,1730302281255,-1296.78905113,0.00039178,5]
[341050085,1730302281264,-522.91969441,0.00039178,5]
[341050086,1730302281274,-858.92584695,0.00039178,5]
[341050087,1730302281285,-644.6150726,0.00039178,5]
[341050088,1730302281295,-1013.82066707,0.00039178,5]
[341050089,1730302281306,-1525.45730674,0.00039178,5]
[341050090,1730302281316,-994.93158657,0.00039178,5]
[341050091,1730302281326,-1722.43897014,0.00039178,5]
[341050092,1730302281336,-765.53160731,0.00039178,5]
[341050093,1730302281347,-520.17632428,0.00039178,5]
[341050094,1730302281357,-675.4270007,0.00039178,5]
[341050095,1730302281367,-746.83100183,0.00039178,5]
[341050096,1730302281377,-784.7684037,0.00039178,5]
[341050097,1730302281387,-1069.86462477,0.00039178,5]
[341050098,1730302281398,-736.64106848,0.00039178,5]
[341050099,1730302281407,-854.47281992,0.00039178,5]
[341050100,1730302281417,-606.49169894,0.00039178,5]
[341050101,1730302281426,-674.71996943,0.00039178,5]
[341050102,1730302281436,-983.16332429,0.00039178,5]
[341050103,1730302281446,-778.8776037,0.00039178,5]
[341050104,1730302281460,-728.26664162,0.00039178,5]
[341050105,1730302281469,-1522.95365692,0.00039178,5]
[341050106,1730302281479,-552.2611379,0.00039178,5]
[341050107,1730302281489,-662.73145082,0.00039178,5]
[341050108,1730302281499,-1018.57884597,0.00039178,5]
[341050109,1730302281511,-1327.60415266,0.00039178,5]
[341050110,1730302281521,-560.44714543,0.00039178,5]
[341050111,1730302281530,-607.31452546,0.00039178,5]
[341050112,1730302281540,-494.78736647,0.00039178,5]
[341050113,1730302281549,-508.34205818,0.00039178,5]
[341050114,1730302281561,-1605.76879674,0.00039178,2]
[341050115,1730302281571,-863.26374653,0.00039178,5]
[341050116,1730302281580,-1678.65854645,0.00039178,5]
[341050117,1730302281590,-656.64,0.00039178,5]
[341050118,1730302281601,-1610.18160939,0.00039178,5]
[341050119,1730302281610,-893.64263301,0.00039178,5]
[341050120,1730302281620,-742.25828602,0.00039178,5]
[341050121,1730302281630,-785.36431399,0.00039178,5]
[341050122,1730302281642,-638.98685804,0.00039178,5]
[341050123,1730302281653,-536.62915363,0.00039178,5]
[341050124,1730302281663,-948.83433327,0.00039178,5]
[341050125,1730302281672,-597.13143528,0.00039178,5]
[341050126,1730302281682,-1435.9411,0.00039178,5]
[341050127,1730302281692,-1132.15672744,0.00039178,5]
[341050128,1730302281702,-2913.776604,0.00039178,5]
[341050129,1730302281713,-1247.06763667,0.00039178,5]
[341050130,1730302281723,-909.641412,0.00039178,5]
[341050131,1730302281733,-682.71403215,0.00039178,5]
[341050132,1730302281743,-512.42031684,0.00039178,5]
[341050133,1730302281753,-1653.69128233,0.00039178,5]
[341050134,1730302281763,-568.94957364,0.00039178,5]
[341050135,1730302281773,-607.70168906,0.00039178,5]
[341050136,1730302281782,-685.84141665,0.00039178,5]
[341050137,1730302281792,-208.08437198,0.00039178,5]
[341050138,1730302281802,-529.80804783,0.00039178,5]
[341050139,1730302281812,-548.34428629,0.00039178,5]
[341050140,1730302281821,-728.26501782,0.00039178,5]
[341050141,1730302281830,-1132.32000001,0.00039178,5]
[341050142,1730302281840,-597.2008316,0.00039178,5]
[341050143,1730302281850,-1047.52272747,0.00039178,5]
[341050144,1730302281859,-770.68503735,0.00039178,5]
[341050145,1730302281869,-535.88923485,0.00039178,5]
[341050146,1730302281879,-507.45036195,0.00039178,5]
[341050147,1730302281888,-536.65822687,0.00039178,5]
[341050148,1730302281898,-879.65426892,0.00039178,5]
[341050149,1730302281909,-1153.04489734,0.00039178,5]
[341050150,1730302281918,-538.36278747,0.00039178,5]
[341050151,1730302281928,-1061.85846171,0.00039178,5]
[341050152,1730302281938,-745.41,0.00039178,5]
[341050153,1730302281948,-3103.41972312,0.00039178,5]
[341050154,1730302281958,-1669.36,0.00039178,5]
[341050155,1730302281968,-200.0,0.00039235,2]
[341050156,1730302281978,-2975.73,0.00039314,120]
[341050157,1730302281987,-309.10861296,0.00039451,2]
[341050158,1730302281997,-15588.60929093,0.000398,2]
[341050159,1730302282008,-800.0,0.0003981,2]
[341050160,1730302282018,-173.16,0.000399,30]
[341050161,1730302282027,-361.43,0.000399,14]
[341050162,1730302282037,-499.0,0.000399,120]
[341050163,1730302282047,-2975.73,0.00039999,120]
[341050164,1730302282059,-153.37,0.0004,2]
[341050165,1730302282069,-153.37,0.0004,2]
[341050166,1730302282079,-153.37,0.0004,2]
[341050167,1730302282089,-153.37,0.0004,2]
[341050168,1730302282099,-228.48,0.00040161,2]
[341050169,1730302282110,-152.0,0.00040191,4]
[341050170,1730302282119,-478.86,0.0004029,2]
[341050171,1730302282129,-167.26,0.00040364,2]
[341050172,1730302282139,-964.84,0.00040374,2]
[341050173,1730302282149,-2975.73,0.00040684,120]
[341050174,1730302282159,-309.10861296,0.00040964,2]
[341050175,1730302282168,-12794.04250926,0.00041,2]
[341050176,1730302282178,-1577.97,0.00041031,2]
[341050177,1730302282187,-151.14,0.0004107,2]
[341050178,1730302282197,-498.05341315,0.00041095,5]
[341050179,1730302282207,-794.07,0.00041095,5]
[341050180,1730302282216,-794.07,0.00041095,5]
[341050181,1730302282226,-794.07,0.00041095,5]
[341050182,1730302282236,-794.07,0.00041095,5]
[341050183,1730302282245,-794.07,0.00041095,5]
[341050184,1730302282255,-794.07,0.00041095,5]
[341050185,1730302282265,-794.07,0.00041095,5]
[341050186,1730302282275,-794.07,0.00041095,5]
[341050187,1730302282284,-794.07,0.00041095,5]
[341050188,1730302282295,-794.07,0.00041095,5]
[341050189,1730302282304,-794.07,0.00041095,5]
[341050190,1730302282314,-794.07,0.00041095,5]
[341050191,1730302282324,-794.07,0.00041095,5]
[341050192,1730302282334,-794.07,0.00041095,5]
[341050193,1730302282344,-794.07,0.00041095,5]
[341050194,1730302282354,-794.07,0.00041095,5]
[341050195,1730302282363,-794.07,0.00041095,5]
[341050196,1730302282373,-794.07,0.00041095,5]
[341050197,1730302282382,-794.07,0.00041095,5]
[341050198,1730302282391,-794.07,0.00041095,5]
[341050199,1730302282401,-794.07,0.00041095,5]
[341050200,1730302282411,-794.07,0.00041095,5]
[341050201,1730302282420,-794.07,0.00041095,5]
[341050202,1730302282429,-794.2750685,0.00041095,5]
[341050203,1730302282439,-500.0,0.00041095,5]
[341050204,1730302282448,-500.0,0.00041095,5]
[341050205,1730302282459,-500.0,0.00041095,5]
[341050206,1730302282469,-500.0,0.00041095,5]
[341050207,1730302282478,-500.0,0.00041095,5]
[341050208,1730302282487,-500.0,0.00041095,5]
[341050209,1730302282497,-500.0,0.00041095,5]
[341050210,1730302282507,-500.0,0.00041095,5]
[341050211,1730302282517,-500.0,0.00041095,5]
[341050212,1730302282527,-500.0,0.00041095,5]
[341050213,1730302282537,-529.03281966,0.00041095,5]
[341050214,1730302282547,-1000.0,0.00041096,2]
[341050215,1730302282557,-1000.0,0.00041096,2]
[341050216,1730302282572,-1000.0,0.00041096,2]
[341050217,1730302282581,-1000.0,0.00041096,2]
[341050218,1730302282591,-1000.0,0.00041096,2]
[341050219,1730302282600,-1000.0,0.00041096,2]
[341050220,1730302282611,-1000.0,0.00041096,2]
[341050221,1730302282622,-1000.0,0.00041096,2]
[341050222,1730302282633,-1000.0,0.00041096,2]
[341050223,1730302282645,-1000.0,0.00041096,2]
[341050224,1730302282657,-1000.0,0.00041096,2]
[341050225,1730302282668,-799.0,0.00041096,2]
[341050226,1730302282679,-157.0,0.00041096,2]
[341050227,1730302282689,-150.0,0.00041096,2]
[341050228,1730302282699,-200.0,0.000411,2]
[341050229,1730302282710,-5000.0,0.000411,2]
[341050230,1730302282720,-2000.0,0.000411,2]
[341050231,1730302282730,-350.0,0.000411,2]
[341050232,1730302282739,-150.0,0.00041249,2]
[341050233,1730302282749,-2501.55,0.00041258,2]
[341050234,1730302282759,-2501.55,0.00041276,2]
[341050235,1730302282769,-2975.73,0.00041369,120]
[341050236,1730302282779,-228.48,0.00041405,2]
[341050237,1730302282789,-519.31,0.00041575,2]
[341050238,1730302282799,-896.62,0.00041604,2]
[341050239,1730302282809,-150.0,0.00041608,2]
[341050240,1730302282818,-150.0,0.0004165,2]
[341050241,1730302282827,-1860.8,0.00041719,2]